Cogmind - Beta 13 @@@ ROGUE MODE // 2024.06.17 @ 19:55:51 Player: H3-RMN Result: Destroyed self with Rocket Launcher Performance ------------- Evolutions (0) 0 Regions Visited (4) 800 Robots Destroyed (32) 160 Value Destroyed (638) 638 Prototype IDs (25) 500 Alien Tech Used (0) 0 Bonus (54) 54 TOTAL SCORE: 2152 Bonus ------- Follower Combat Kills 81 Friendly Fire -27 Cogmind --------- Core Integrity 0/250 Matter 424/500 Energy 100/100 System Corruption 0% Temperature Cool (0) Movement Treading (320) Ox2 Location -9/Mines Parts ------- > --- POWER (1) -------- (None) > --- PROPULSION (2) --- Light Treads Wheel > --- UTILITY (2) ------ High-capacity Storage Unit High-capacity Matter Pod > --- WEAPON (2) ------- Makeshift Shrapnel Gun Rocket Launcher > --- INVENTORY (20) --- Makeshift Power Source Wheel Medium Storage Unit Large Storage Unit Machine Analyzer Army-in-a-Box (30/30) Small Laser Light Assault Rifle Light Assault Rifle Light Assault Rifle Light Assault Rifle Gauss Rifle Mining Laser Ripper Signal Generator Peak State ------------ > --- POWER ------------ Ion Engine > --- PROPULSION ------- Light Treads Wheel > --- UTILITY ---------- High-capacity Storage Unit > --- WEAPON ----------- Makeshift Shrapnel Gun Rocket Launcher > --- INVENTORY -------- Makeshift Power Source Light Treads Wheel Medium Storage Unit Large Storage Unit High-capacity Matter Pod Machine Analyzer Army-in-a-Box Small Laser Light Assault Rifle Light Assault Rifle Gauss Rifle Mining Laser Ripper Signal Generator [Rating: 18] Favorites ----------- Power Ion Engine Engine Ion Engine Propulsion Light Treads Treads Light Treads Wheel Wheel Utility High-capacity Storage Unit Device Improved Terrain Scanner Storage High-capacity Storage Unit Weapon Assault Rifle Energy Gun Small Laser Ballistic Gun Assault Rifle Launcher Rocket Launcher Build | -11 -10 -10 -10 -9 ------- Run | Yrd Mat Min Exi Min Slots Evolved . | . . . . . Power . | . . . . . Propulsion . | . . . . . Utility . | . . . . . Weapon . | . . . . . Parts Attached 18 | 8 2 2 1 5 Power 1 | 1 . . . . Engine 1 | 1 . . . . Core . | . . . . . Reactor . | . . . . . Propulsion 5 | 2 . 1 1 1 Treads 3 | 1 . 1 . 1 Leg . | . . . . . Wheel 2 | 1 . . 1 . Hover . | . . . . . Flight . | . . . . . Utility 6 | 3 2 . . 1 Device 2 | 2 . . . . Storage 4 | 1 2 . . 1 Processor . | . . . . . Hackware . | . . . . . Protection . | . . . . . Artifact . | . . . . . Weapon 6 | 2 . 1 . 3 Energy Gun 1 | 1 . . . . Energy Cannon . | . . . . . Ballistic Gun 4 | 1 . 1 . 2 Ballistic Cannon . | . . . . . Launcher 1 | . . . . 1 Special Weapon . | . . . . . Impact Weapon . | . . . . . Slashing Weapon . | . . . . . Piercing Weapon . | . . . . . Special Melee Weapon . | . . . . . Unidentified Prototypes . | . . . . . Parts Lost 7 | . . 2 . 5 Power 1 | . . . . 1 Propulsion 2 | . . 1 . 1 Utility 1 | . . . . 1 Weapon 3 | . . 1 . 2 Highest Loss Streak 3 | . . 2 . 3 To Critical Strikes . | . . . . . Average Slot Usage (%) 98 | . 100 99 100 86 Engine 13 | . 14 14 14 6 Treads 23 | . 14 26 26 14 Wheel 4 | . 14 1 1 14 Device 12 | . 14 14 14 1 Storage 14 | . 14 14 14 20 Energy Gun 2 | . 14 1 . . Ballistic Gun 25 | . 14 26 28 20 Naked Turns . | . . . . . Heaviest Build 50 | 14 49 49 49 50 Greatest Support 40 | 20 10 40 40 10 Greatest Overweight (x) 4 | 1 4 4 4 4 Average Overweight (x) 1 | . 2 1 1 4 Largest Inventory Capacity 20 | 8 20 20 20 20 Average Capacity 19 | 7 16 20 20 20 Most Carried 20 | 8 14 15 20 20 Average Carried 14 | 4 11 12 16 19 Final Capacity 20 | 8 20 20 20 20 Final Carried 20 | 8 14 15 20 20 Class Distribution -------------------- 75% | Mutant 24% | Commander-Mutant Dominant Class ---------------- Mutant | -10/Materials Mutant | -10/Mines Commander-Mutant | -10/Exiles Mutant | -9/Mines Resources | -11 -10 -10 -10 -9 ----------- Run | Yrd Mat Min Exi Min Matter Collected 872 | 307 325 112 . 128 Remotely 94 | 94 . . . . Salvage Created 979 | 124 246 308 . 301 Parts 65 | 10 21 19 . 15 Haulers Intercepted 1 | . 1 . . . Recyclers Shooed . | . . . . . Parts Field Recycled . | . . . . . Retrieved Matter . | . . . . . Parts Self-Destructed . | . . . . . Prevented . | . . . . . Kills | -11 -10 -10 -10 -9 ------- Run | Yrd Mat Min Exi Min Combat Hostiles Destroyed 30 | . 8 8 . 14 Guns 25 | . 8 8 . 9 AOE 5 | . . . . 5 Classes Destroyed 9 | 2 4 1 . 2 Worker 1 | . 1 . . . Tunneler 2 | 2 . . . . Hauler 1 | . 1 . . . Recycler 1 | 1 . . . . Mechanic 1 | . . 1 . . Swarmer 14 | . 6 3 . 5 Grunt 11 | . 2 5 . 4 Brawler 1 | . . . . 1 Assembled 4 | . . . . 4 Best Kill Streak 5 | 3 4 3 . 5 Combat Bots Only 5 | . 3 3 . 5 Max Kills in Single Turn 2 | 1 2 1 . 2 Gunslinging 1 | . 1 . . . Exploded 2 | . . . . 2 Melee . | . . . . . Uniques/NPCs Destroyed . | . . . . . Combat | -11 -10 -10 -10 -9 -------- Run | Yrd Mat Min Exi Min Hostile Shots Fired 123 | . 43 35 . 45 Missed 34 | . 16 9 . 9 Damage Taken 1146 | . 251 365 . 530 Core 256 | . 37 127 . 92 Absorbed by Shields . | . . . . . Core Remaining (%) 100 | 100 . . . . Volleys Fired 100 | 9 35 28 . 28 Largest 2 | 2 2 2 . 2 Hottest 60 | 60 60 60 . 57 Shots Fired 187 | 18 70 56 . 43 Gun 182 | 18 70 56 . 38 Cannon . | . . . . . Launcher 5 | . . . . 5 Special . | . . . . . Kinetic 132 | 9 35 50 . 38 Thermal 50 | 9 35 6 . . Explosive 5 | . . . . 5 Electromagnetic . | . . . . . Robot Hit Streak 13 | 5 8 13 . 9 Robot Miss Streak 4 | 2 3 2 . 4 Penetration Max . | . . . . . Secondary Targets 5 | . 2 2 . 1 Max Gunslinging Chain 1 | . 1 1 . 1 Shots Hit Robots 128 | 10 48 40 . 30 Core Hits 65 | 4 14 21 . 26 Critical Kills . | . . . . . Critical Parts Destroyed . | . . . . . Critical Strikes . | . . . . . Melee Attacks . | . . . . . Impact . | . . . . . Slashing . | . . . . . Piercing . | . . . . . Sneak Attacks . | . . . . . Combat Hostiles . | . . . . . Follow-up Attacks . | . . . . . Damage Inflicted 1846 | 120 552 435 . 739 Guns 1524 | 120 552 435 . 417 Cannons . | . . . . . Explosions 322 | . . . . 322 Melee . | . . . . . Ramming . | . . . . . Kinetic 1159 | 72 282 388 . 417 Thermal 365 | 48 270 47 . . Explosive 322 | . . . . 322 Electromagnetic . | . . . . . Impact . | . . . . . Slashing . | . . . . . Piercing . | . . . . . Highest Corruption . | . . . . . Average Corruption . | . . . . . Corruption Purged . | . . . . . Corruption Blocked . | . . . . . Overload Shots . | . . . . . Overflow Damage 23 | . . . . 23 Projectiles . | . . . . . Explosions 23 | . . . . 23 Melee . | . . . . . Knockbacks . | . . . . . Impact . | . . . . . Kinetic . | . . . . . Secondary . | . . . . . Self-Inflicted Damage 50 | . . . . 50 Shots 2 | . . . . 2 Rammed . | . . . . . Targets Rammed . | . . . . . Kicked . | . . . . . Crushed . | . . . . . Highest Temperature 69 | . 42 69 . 40 Average Temperature 26 | . 22 33 . 19 Received Heat Transfer 411 | . 60 204 . 147 Siege Activations . | . . . . . Robots Corrupted . | . . . . . Combat Hostiles . | . . . . . Parts Fried . | . . . . . Impact Corruptions . | . . . . . Robots Melted . | . . . . . Combat Hostiles . | . . . . . Parts Melted . | . . . . . Heat Transferred 825 | 100 625 100 . . Parts Sabotaged . | . . . . . Parts Stolen . | . . . . . Parts Stripped . | . . . . . Power Chain Reactions . | . . . . . Alert | -11 -10 -10 -10 -9 ------- Run | Yrd Mat Min Exi Min Peak Influence 301 | 15 267 133 . 301 Initial 103 | . 9 103 . . Average 89 | 5 123 62 . 203 Maximum Alert Level 1 | . 1 . . 1 Low Security (%) 88 | 100 77 100 . 46 Level 1 11 | . 22 . . 53 Level 2 . | . . . . . Level 3 . | . . . . . Level 4 . | . . . . . Level 5 . | . . . . . High Security . | . . . . . Max Security . | . . . . . Squads Dispatched 1 | . . 1 . . Investigation . | . . . . . Extermination . | . . . . . Reinforcement . | . . . . . Assault 1 | . . 1 . . Garrison . | . . . . . Intercept . | . . . . . Searches Triggered . | . . . . . Construction Impeded . | . . . . . Haulers Reinforced . | . . . . . Active Scanning Responses . | . . . . . Cargo Convoy Interrupts . | . . . . . Stealth | -11 -10 -10 -10 -9 --------- Run | Yrd Mat Min Exi Min Distress Signals . | . . . . . Communications Jammed . | . . . . . Distress Signals . | . . . . . Times Spotted 43 | . 10 9 . 24 Peak Tracking Total 7 | . 3 3 . 7 Tactical Retreats 2 | . . 1 . 1 Traps | -11 -10 -10 -10 -9 ------- Run | Yrd Mat Min Exi Min Traps Triggered . | . . . . . Indirectly . | . . . . . Trap Hack Attempts . | . . . . . Triggered . | . . . . . Disarmed . | . . . . . Reprogrammed . | . . . . . Reused . | . . . . . Traps Extracted . | . . . . . Installed . | . . . . . Triggered . | . . . . . Machines | -11 -10 -10 -10 -9 ---------- Run | Yrd Mat Min Exi Min Machines Disabled . | . . . . . Max in Single Turn . | . . . . . Machines Repaired . | . . . . . Machines Dismantled . | . . . . . Machines Sabotaged . | . . . . . Overloaded Fab Kills . | . . . . . Hacking | -11 -10 -10 -10 -9 --------- Run | Yrd Mat Min Exi Min Machines Accessed 8 | . 5 . 2 1 Terminals 6 | . 5 . . 1 Fabricators . | . . . . . Repair Stations . | . . . . . Recycling Units . | . . . . . Scanalyzers . | . . . . . Garrison Access . | . . . . . Total Hacks 30 | . 20 . 5 5 Successful 16 | . 8 . 5 3 Failed 13 | . 12 . . 1 Catastrophic 1 | . 1 . . . Database Lockouts 1 | . . . . 1 Manual 17 | . 13 . 1 3 Terminals 25 | . 20 . . 5 Fabricators . | . . . . . Repair Stations . | . . . . . Recycling Units . | . . . . . Scanalyzers . | . . . . . Garrison Access . | . . . . . Terminal Hacks 16 | . 8 . 5 3 Record 4 | . . . 4 . Part Schematic 3 | . 2 . . 1 Robot Schematic 1 | . 1 . . . Robot Analysis 2 | . 1 . . 1 Prototype ID Bank 1 | . 1 . . . Locate Traps 2 | . 2 . . . Zone Layout 2 | . 1 . . 1 Derelict Proto ID Bank 1 | . . . 1 . Fabricator Hacks . | . . . . . Repair Station Hacks . | . . . . . Recycling Unit Hacks . | . . . . . Scanalyzer . | . . . . . Garrison Access Hacks . | . . . . . Unauthorized Hacks . | . . . . . Terminals . | . . . . . Fabricators . | . . . . . Repair Stations . | . . . . . Recycling Units . | . . . . . Scanalyzers . | . . . . . Garrison Access . | . . . . . Data Cores Recovered . | . . . . . Used . | . . . . . Hacking Detections 6 | . 5 . . 1 Full Trace Events . | . . . . . Feedback Events . | . . . . . Feedback Blocked . | . . . . . Robot Schematics Acquired 1 | . 1 . . . Robots Built . | . . . . . Authchips . | . . . . . Time . | . . . . . Total Robot Build Rating . | . . . . . Part Schematics Acquired 3 | . 2 . . 1 Parts Built . | . . . . . Authchips . | . . . . . Time . | . . . . . Total Part Build Rating . | . . . . . Parts Repaired . | . . . . . Time . | . . . . . Parts Recycled . | . . . . . Recycled Matter . | . . . . . Retrieved Matter . | . . . . . Retrieved Components . | . . . . . Parts Scanalyzed . | . . . . . Part Schematics Acquired . | . . . . . Parts Damaged . | . . . . . Bothacking | -11 -10 -10 -10 -9 ------------ Run | Yrd Mat Min Exi Min Used RIF Installer . | . . . . . Robots Hacked . | . . . . . Non-combat . | . . . . . Combat . | . . . . . Robot Hacks Applied . | . . . . . Relay Couplers Released . | . . . . . Fabnet Peak Effective % . | . . . . . Robots Rewired 4 | . . . 4 . Allies Hacked . | . . . . . Hacks Repelled . | . . . . . Allies | -11 -10 -10 -10 -9 -------- Run | Yrd Mat Min Exi Min Total Allies 5 | . . 1 4 . Largest Group 4 | . . 1 4 4 Highest-Rated Group 45 | . . 31 45 45 Highest-Rated Ally 31 | . . 31 21 21 Total Orders . | . . . . . Ally Attacks 29 | . . 12 . 17 Total Damage 369 | . . 168 . 201 Kills 5 | . . 1 . 4 Allies Corrupted . | . . . . . Allies Melted . | . . . . . Intel | -11 -10 -10 -10 -9 ------- Run | Yrd Mat Min Exi Min Robot Analysis Total 2 | . 1 . . 1 Derelict Logs Recovered 4 | . . 3 . 1 Drone Launches . | . . . . . Drone Recoveries . | . . . . . Exploration | -11 -10 -10 -10 -9 ------------- Run | Yrd Mat Min Exi Min Turns Passed 3380 | 108 364 1411 1184 313 Spaces Moved 1493 | 64 193 575 495 166 Core 2 | 2 . . . . Treads 901 | 2 . 504 395 . Legs . | . . . . . Wheels 590 | 60 193 71 100 166 Hover . | . . . . . Flight . | . . . . . Fastest Speed 50 | 50 95 140 140 140 Average Speed 195 | 91 120 227 219 140 Slowest Speed 240 | 160 140 240 240 140 Overloaded Moves . | . . . . . Propulsion Burnouts . | . . . . . Robots Hopped . | . . . . . Cave-ins Triggered . | . . . . . Exploration Rate (%) 52 | 4 35 95 89 39 Regions Visited 4 Branch Regions 3 Pre-discovered Areas 2 | . . 1 1 . Known Exits Taken . | . . . . . Unknown Exits Taken 4 | 1 1 1 1 . Scrap Searched 2 | . . . . 2 Spaces Dug . | . . . . . Terrain Destroyed 48 | . . . . 48 Melee . | . . . . . Projectile . | . . . . . AOE 48 | . . . . 48 Terrain Rammed . | . . . . . Walls Destroyed . | . . . . . Machines Disabled . | . . . . . Actions | -11 -10 -10 -10 -9 --------- Run | Yrd Mat Min Exi Min Total 1775 | 92 255 626 593 209 Wait 47 | 1 19 19 4 4 Move 1489 | 63 192 574 494 166 Hop . | . . . . . Pick Up 29 | 9 6 3 6 5 Fast Attach 8 | 8 . . . . Attach 6 | . . 2 . 4 Detach . | . . . . . Swap 4 | . 2 . 1 1 Drop 10 | 2 1 . 6 1 Fire 100 | 9 35 28 . 28 Melee . | . . . . . Ram . | . . . . . Kick . | . . . . . Crush . | . . . . . Escape Stasis . | . . . . . Rewire 82 | . . . 82 . Trap . | . . . . . Miscellaneous . | . . . . . Route ------- -11/Scrapyard -10/Materials (discovered 2 exits: [*Mat] / [*Min]) -10/Mines (discovered 4 exits: [*Mat x2] / *Exi / [*Sub]) -10/Exiles -9/Mines History --------- Turn | Location | Event 22 | -11/Scrapyard | Discovered new exit (range 16) 109 | -11/Scrapyard | Entered Materials 306 | -10/Materials | Build established: Mutant 312 | -10/Materials | Discovered new exit (range 13) 438 | -10/Materials | Discovered new exit (range 12) 473 | -10/Materials | Entered Mines 481 | -10/Mines | Met a Derelict bent on vengeance 513 | -10/Mines | Discovered new exit (range 13) 1077 | -10/Mines | Deemed a non-threat by the Exiles lab entrance 1077 | -10/Mines | Discovered new exit (range 5) 1168 | -10/Mines | Learned location of Storage (-7) 1173 | -10/Mines | Discovered new exit (range 9) 1319 | -10/Mines | Learned location of 1 exit from Materials 1467 | -10/Mines | Core integrity fell below 50% 1492 | -10/Mines | Discovered new exit (range 10) 1507 | -10/Mines | Learned Materials emergency access door positions 1565 | -10/Mines | Met a Derelict testing a Signal Generator 1574 | -10/Mines | Found Signal Generator 1650 | -10/Mines | Received a Rocket Launcher from a helpful Derelict 1884 | -10/Mines | Entered Exiles 1884 | -10/Exiles | Found Exiles lab destroyed 2196 | -10/Exiles | Learned location of Zion (-6) 2530 | -10/Exiles | Build established: Commander-Mutant 2904 | -10/Exiles | Opened EX-Vault 2921 | -10/Exiles | Found Army-in-a-Box 3051 | -10/Exiles | Discovered new exit (range 11) 3068 | -10/Exiles | Entered Mines 3068 | -9/Mines | Accompanied by 4 allies 3080 | -9/Mines | Central database locked down 3107 | -9/Mines | Core integrity fell below 20% 3125 | -9/Mines | Lost 4 allies 3136 | -9/Mines | Lost 3 parts (1u2w) 3164 | -9/Mines | A weapon hastily lodged in a ceiling crevice suddenly fell to the ground 3208 | -9/Mines | Assembled infested the area 3365 | -9/Mines | Build established: Mutant 3381 | -9/Mines | Destroyed self with Rocket Launcher Last Messages --------------- 03212_ C-30 ARC bursts open, deploying its payload. 03212_ S-10 Pest unfolds itself. 03213_ S-10 Pest destroyed. 03214_ Lgt. Treads destroyed. 03216_ Ion Engine destroyed. 03216_ S-10 Pest destroyed. 03218_ U-05 Engineer lays Concrete. 03238_ as-42203 destroyed. 03242_ as-51197 destroyed. 03246_ as-27931 destroyed. 03248_ Acquired 10 matter. 03250_ Acquired 11 matter. 03266_ as-83925 destroyed. 03296_ Destroyed Flight Unit. 03296_ S-10 Pest destroyed. 03305_ Acquired 8 matter. 03306_ Acquired 5 matter. 03312_ Acquired 15 matter. 03314_ Acquired Lgt. Assault Rifle. Map ----- +----------------------------------------------------+ | | | ????????????????????????????????????????????? | | ????????????????????????????????????????????? | | ??????????????????????????????######????????? | | ??????????????????????????????# #????????? | | ??????????????????????????????# #????????? | | ???????????????????????######## #????????? | | ???????????????????????# * #????????? | | ????????????????#####??# ######= #????????? | | ???????????????## ##?# #????# #????????? | | ???????????????# ### #??### #????????? | | ???????????????# ## #??# =####????????? | | ???????????????## ## #### * ######????? | | ????????????????## #????? | | ?????????????????## ######## ##### #????? | | ??????????????????####??????# # ##??# #????? | | ????????????????????????????# ###???# #????? | | ????????????????????????????## #????## ###??? | | ?????????????????????????##### #????# ##?? | | ?????????????????????????# #???## #?? | | ?????????????????????????# #####??## #?? | | ????????????????????????## #??????# ##? | | ???????????????????????## ##?????# #? | | ???????????????????????# ##????# #? | | ???????????????????????# #????# #? | | ???????????????????????##@ #???## ##? | | ????????????????????????## #??# #?? | | ?????????????????????????## #?## ##?? | | ???????????????????????????#a #?## ###??? | | ???????????????????????????? #??## #???? | | ???????????????????????????? #???# #???? | | ???????????????????????????? #???## #???? | | ???????????????????????????? #????# ##??? | | ???????????????????????????? ##???## " ##?? | | ?????????????????????????????###???## #?? | | ???????????????????????????????????# #?? | | ???????????????????????????????##### #?? | | ???????????????????????????????# #?? | | ???????????????????????????????# #### #?? | | ????????????????????????????????????# #?? | | ????????????????????????????????????# #?? | | ????????????????????????????????????## ##?? | | ?????????????????????????????????????### #??? | | ????????????????????????????###????##### #??? | | ???????????????????????????? ????# %#??? | | ????????????????????????????# #????# #??? | | ???????????????????????????## #????# ####??? | | ???????????????????????????# #????# #?????? | | ??????????####?????????????# ???# #?????? | | ?????????## ##????????????## ## #?????? | +----------------------------------------------------+ Best States ------------- Heat Dissipation 25 Energy Generation 10 Energy Capacity 250 Matter Stores 440 Matter Capacity 500 Sight Range 16 Terrain Scan Range 16 Terrain Scan Density 10 Evasion (%) 44 Recoil Reduction 2 Item Schematics ----------------- Hcp. Storage Unit | -10/Materials | Hacked Huge Storage Unit | -10/Materials | Hacked Plasma Cutter | -9/Mines | Hacked Robot Schematics ------------------ M-13 Machinist | -10/Materials | Hacked Fabricated ------------ Nothing Alien Tech Used ----------------- None Achievements -------------- None Challenges ------------ None Game ------ Seed BlastCooledInsulator Manual? 0 Play Time 00:20:30 Cumulative 427.1 hours Start 2024.06.17 @ 19:33:10 End 2024.06.17 @ 19:55:51 Sessions 1 Manual Loads 0 Difficulty Rogue Special Mode None Game No. 165 Rogue 162 Adventurer 3 Explorer 0 Win Type - Total 7 Types 4/1/0/1/0/1/0/0/0 Lore% 80 Gallery% 84 Achievement% 86 Wizard Run 0 Options --------- Layout 2 ASCII 0 Keyboard 0 Movement Numpad Keybinds 0 Fullscreen 2 Font 24/Smallcaps Map View 50x44 Zoom Use 0% Tactical HUD 1 Map Filters NONE Filters NONE Steam 1 RUN: 053c7560-df94-4c4d-9d49-618caf2d6fe8